[Event "Late-Titled-Tuesday-Blitz-May-07-2024"]
[Site "Chess.com"]
[Date "2024.05.07"]
[Round "4"]
[White "Szparu"]
[Black "Franmu14"]
[Result "0-1"]
[WhiteElo "2919"]
[BlackElo "2744"]
[TimeControl "180+1"]
[EndTime "14:39:12 PDT"]
[Termination "Franmu14 won on time"]

1. e4 {[%clk 0:03:00.9]} 1... e5 {[%clk 0:02:47.5]} 2. Nf3 {[%clk 0:03:00.7]}
2... Nc6 {[%clk 0:02:47.8]} 3. d4 {[%clk 0:03:01.2]} 3... exd4 {[%clk
0:02:47.6]} 4. Nxd4 {[%clk 0:03:02.1]} 4... d6 {[%clk 0:02:48.1]} 5. Nc3 {[%clk
0:03:01.7]} 5... Nf6 {[%clk 0:02:47.8]} 6. Bb5 {[%clk 0:03:00]} 6... Bd7 {[%clk
0:02:46.8]} 7. O-O {[%clk 0:02:57.3]} 7... Be7 {[%clk 0:02:46.5]} 8. Re1 {[%clk
0:02:55.5]} 8... O-O {[%clk 0:02:47]} 9. Nxc6 {[%clk 0:02:50.9]} 9... Bxc6
{[%clk 0:02:43]} 10. Bxc6 {[%clk 0:02:51]} 10... bxc6 {[%clk 0:02:43.9]} 11. b3
{[%clk 0:02:51.6]} 11... Nd7 {[%clk 0:02:43.5]} 12. Bb2 {[%clk 0:02:48]} 12...
Bf6 {[%clk 0:02:44.1]} 13. Qd2 {[%clk 0:02:45.2]} 13... Re8 {[%clk 0:02:44.3]}
14. Rad1 {[%clk 0:02:44]} 14... Nc5 {[%clk 0:02:31.6]} 15. f3 {[%clk 0:02:44.1]}
15... Qb8 {[%clk 0:02:27.4]} 16. Na4 {[%clk 0:02:31.8]} 16... Bxb2 {[%clk
0:02:16]} 17. Nxb2 {[%clk 0:02:31.7]} 17... a5 {[%clk 0:02:15.3]} 18. a4 {[%clk
0:02:29.6]} 18... Ne6 {[%clk 0:01:53.4]} 19. Kh1 {[%clk 0:02:28.9]} 19... c5
{[%clk 0:01:53.2]} 20. Nc4 {[%clk 0:02:26.9]} 20... Qb4 {[%clk 0:01:52.9]} 21.
Qd3 {[%clk 0:02:09.1]} 21... Rad8 {[%clk 0:01:42.4]} 22. Qd2 {[%clk 0:02:03.3]}
22... Ra8 {[%clk 0:01:40.7]} 23. h3 {[%clk 0:01:53.7]} 23... h6 {[%clk
0:01:30.9]} 24. Qf2 {[%clk 0:01:30.6]} 24... Qc3 {[%clk 0:01:21.2]} 25. Re3
{[%clk 0:01:20.1]} 25... Qf6 {[%clk 0:01:15.4]} 26. e5 {[%clk 0:01:20.3]} 26...
dxe5 {[%clk 0:01:15.3]} 27. Rxe5 {[%clk 0:01:20.4]} 27... Nd4 {[%clk 0:01:13.3]}
28. Rxc5 {[%clk 0:01:15.9]} 28... Rad8 {[%clk 0:00:47.7]} 29. Rxc7 {[%clk
0:01:12.6]} 29... Qf4 {[%clk 0:00:31.7]} 30. Rc5 {[%clk 0:00:23.4]} 30... Nf5
{[%clk 0:00:30.5]} 31. Re1 {[%clk 0:00:15.7]} 31... Ng3+ {[%clk 0:00:19.1]} 32.
Kg1 {[%clk 0:00:15.8]} 32... Ne2+ {[%clk 0:00:06.7]} 33. Kf1 {[%clk 0:00:09.7]}
33... Ng3+ {[%clk 0:00:06.9]} 34. Kg1 {[%clk 0:00:09.7]} 34... Ne2+ {[%clk
0:00:07.2]} 35. Rxe2 {[%clk 0:00:02]} 35... Rd1+ {[%clk 0:00:06.1]} 36. Qf1
{[%clk 0:00:01.8]} 36... Qd4+ {[%clk 0:00:04.2]} 37. Kh2 {[%clk 0:00:02.2]}
37... Rxf1 {[%clk 0:00:03.6]} 38. Rxe8+ {[%clk 0:00:02.1]} 38... Kh7 {[%clk
0:00:04.3]} 39. Rce5 {[%clk 0:00:01.3]} 39... Qf4+ {[%clk 0:00:04.3]} 40. g3
{[%clk 0:00:01.1]} 40... Qxf3 {[%clk 0:00:04.6]} 0-1

[Event "Late-Titled-Tuesday-Blitz-May-07-2024"]
[Site "Chess.com"]
[Date "2024.05.07"]
[Round "4"]
[White "GMMikhailKazakov"]
[Black "carlsenCamacho"]
[Result "0-1"]
[WhiteElo "2506"]
[BlackElo "2326"]
[TimeControl "180+1"]
[EndTime "14:39:12 PDT"]
[Termination "carlsenCamacho won on time"]

1. d4 {[%clk 0:03:00.9]} 1... d5 {[%clk 0:02:58.6]} 2. c4 {[%clk 0:03:00.6]}
2... c6 {[%clk 0:02:58.9]} 3. g3 {[%clk 0:02:59.1]} 3... dxc4 {[%clk 0:02:55.1]}
4. Bg2 {[%clk 0:02:57.9]} 4... Nf6 {[%clk 0:02:55.6]} 5. Nc3 {[%clk 0:02:56]}
5... Be6 {[%clk 0:02:29.9]} 6. Nf3 {[%clk 0:02:55.1]} 6... Nd5 {[%clk 0:02:29]}
7. O-O {[%clk 0:02:52.9]} 7... Nxc3 {[%clk 0:02:28]} 8. bxc3 {[%clk 0:02:53.8]}
8... Nd7 {[%clk 0:02:27.6]} 9. Ng5 {[%clk 0:02:51.1]} 9... Bg4 {[%clk
0:02:26.6]} 10. f3 {[%clk 0:02:27.1]} 10... Bh5 {[%clk 0:02:25.2]} 11. e4 {[%clk
0:02:27.3]} 11... e5 {[%clk 0:02:19.9]} 12. Be3 {[%clk 0:02:17.8]} 12... Be7
{[%clk 0:02:15.2]} 13. Nh3 {[%clk 0:02:17.5]} 13... b5 {[%clk 0:02:11.6]} 14.
Qe2 {[%clk 0:01:50.6]} 14... O-O {[%clk 0:02:09.3]} 15. Qf2 {[%clk 0:01:48.2]}
15... a5 {[%clk 0:02:00.9]} 16. g4 {[%clk 0:01:38.8]} 16... Bg6 {[%clk
0:02:00.2]} 17. f4 {[%clk 0:01:38.8]} 17... exf4 {[%clk 0:01:52.5]} 18. Nxf4
{[%clk 0:01:39.7]} 18... Nf6 {[%clk 0:01:49.7]} 19. Nxg6 {[%clk 0:01:31.2]}
19... fxg6 {[%clk 0:01:44.3]} 20. Qg3 {[%clk 0:01:29.1]} 20... b4 {[%clk
0:01:28.9]} 21. Rac1 {[%clk 0:01:17.9]} 21... Qb8 {[%clk 0:01:22.2]} 22. Bf4
{[%clk 0:01:12.3]} 22... Qb6 {[%clk 0:01:15.2]} 23. Be5 {[%clk 0:00:59.6]} 23...
Rae8 {[%clk 0:01:09]} 24. Kh1 {[%clk 0:00:40.2]} 24... b3 {[%clk 0:01:04.5]} 25.
a4 {[%clk 0:00:22.1]} 25... Nd7 {[%clk 0:00:53.7]} 26. Bf4 {[%clk 0:00:20.8]}
26... Qd8 {[%clk 0:00:41.7]} 27. e5 {[%clk 0:00:20.4]} 27... Qc8 {[%clk
0:00:39.2]} 28. Qe3 {[%clk 0:00:19]} 28... Nb6 {[%clk 0:00:38.1]} 29. Qe2 {[%clk
0:00:17.2]} 29... Qe6 {[%clk 0:00:36.1]} 30. h3 {[%clk 0:00:15.3]} 30... c5
{[%clk 0:00:30.5]} 31. Be3 {[%clk 0:00:13]} 31... Nxa4 {[%clk 0:00:21.5]} 32.
Bg1 {[%clk 0:00:09.3]} 32... Nb6 {[%clk 0:00:19.7]} 33. dxc5 {[%clk 0:00:08.4]}
33... Na4 {[%clk 0:00:19.6]} 34. Rfd1 {[%clk 0:00:06.7]} 34... Rd8 {[%clk
0:00:19.3]} 35. Rd4 {[%clk 0:00:05.6]} 35... Bxc5 {[%clk 0:00:17.8]} 36. Rxd8
{[%clk 0:00:04.9]} 36... Rxd8 {[%clk 0:00:16]} 37. Bxc5 {[%clk 0:00:03.1]} 37...
Nxc5 {[%clk 0:00:16.9]} 38. Qf2 {[%clk 0:00:02.7]} 38... Nd3 {[%clk 0:00:16.2]}
39. Qd2 {[%clk 0:00:02.8]} 39... Qxe5 {[%clk 0:00:13.3]} 40. Rf1 {[%clk
0:00:02.5]} 40... Rf8 {[%clk 0:00:08.2]} 41. Rg1 {[%clk 0:00:00.6]} 41... Qg3
{[%clk 0:00:07.2]} 42. Qe2 {[%clk 0:00:00.1]} 42... Qe5 {[%clk 0:00:06.5]} 0-1

[Event "Late-Titled-Tuesday-Blitz-May-07-2024"]
[Site "Chess.com"]
[Date "2024.05.07"]
[Round "4"]
[White "nabukatnezarr"]
[Black "Narek_Ghimoyan"]
[Result "0-1"]
[WhiteElo "2585"]
[BlackElo "2411"]
[TimeControl "180+1"]
[EndTime "14:39:13 PDT"]
[Termination "Narek_Ghimoyan won on time"]

1. Nf3 {[%clk 0:03:00.9]} 1... Nf6 {[%clk 0:02:59.8]} 2. g3 {[%clk 0:03:01.3]}
2... d5 {[%clk 0:02:59.6]} 3. Bg2 {[%clk 0:03:01]} 3... e6 {[%clk 0:02:59.7]} 4.
O-O {[%clk 0:03:01.6]} 4... Be7 {[%clk 0:03:00.2]} 5. d3 {[%clk 0:03:02.2]} 5...
O-O {[%clk 0:02:59.1]} 6. Nbd2 {[%clk 0:03:03]} 6... a5 {[%clk 0:02:59.3]} 7. e4
{[%clk 0:03:02.4]} 7... a4 {[%clk 0:02:59.8]} 8. a3 {[%clk 0:03:02.7]} 8... Nc6
{[%clk 0:02:57.9]} 9. e5 {[%clk 0:02:56.5]} 9... Nd7 {[%clk 0:02:55.7]} 10. Re1
{[%clk 0:02:56.9]} 10... f6 {[%clk 0:02:48.4]} 11. exf6 {[%clk 0:02:52.3]} 11...
Bxf6 {[%clk 0:02:44.6]} 12. c4 {[%clk 0:02:02.2]} 12... Nde5 {[%clk 0:02:42]}
13. cxd5 {[%clk 0:01:49]} 13... exd5 {[%clk 0:02:40]} 14. Qc2 {[%clk 0:01:41.7]}
14... Bg4 {[%clk 0:02:31.3]} 15. Nxe5 {[%clk 0:01:36.4]} 15... Nxe5 {[%clk
0:02:32.2]} 16. d4 {[%clk 0:01:03.5]} 16... Nc6 {[%clk 0:02:29.7]} 17. Nf1
{[%clk 0:00:45.4]} 17... Nxd4 {[%clk 0:02:26.8]} 18. Qc5 {[%clk 0:00:40.7]}
18... c6 {[%clk 0:02:23.8]} 19. Bf4 {[%clk 0:00:28.9]} 19... Nb3 {[%clk
0:02:18.1]} 20. Qc2 {[%clk 0:00:29.4]} 20... Nxa1 {[%clk 0:02:17.2]} 21. Rxa1
{[%clk 0:00:30.3]} 21... Qd7 {[%clk 0:02:17]} 22. Ne3 {[%clk 0:00:30.5]} 22...
Be6 {[%clk 0:02:16.5]} 23. Rd1 {[%clk 0:00:30.3]} 23... Rfe8 {[%clk 0:02:16.4]}
24. Nc4 {[%clk 0:00:30.6]} 24... Bf5 {[%clk 0:02:09.6]} 25. Qc1 {[%clk
0:00:31.2]} 25... Be4 {[%clk 0:02:07.1]} 26. Nb6 {[%clk 0:00:31.5]} 26... Qg4
{[%clk 0:01:59]} 27. Nxa8 {[%clk 0:00:27.9]} 27... Bxg2 {[%clk 0:01:50.6]} 28.
Kxg2 {[%clk 0:00:28.8]} 28... Rxa8 {[%clk 0:01:50.2]} 29. Re1 {[%clk 0:00:25.1]}
29... Rf8 {[%clk 0:01:49.9]} 30. h3 {[%clk 0:00:20.6]} 30... Qf5 {[%clk
0:01:48.8]} 31. g4 {[%clk 0:00:11.3]} 31... Qg6 {[%clk 0:01:44.7]} 32. Bg3
{[%clk 0:00:11]} 32... h5 {[%clk 0:01:43.3]} 33. gxh5 {[%clk 0:00:11.2]} 33...
Qxh5 {[%clk 0:01:44.2]} 34. Qc2 {[%clk 0:00:11.2]} 34... Qf7 {[%clk 0:01:36.6]}
35. Qxa4 {[%clk 0:00:10.7]} 35... Re8 {[%clk 0:01:35.7]} 36. Rxe8+ {[%clk
0:00:10]} 36... Qxe8 {[%clk 0:01:36.6]} 37. Qb3 {[%clk 0:00:10.6]} 37... Qe4+
{[%clk 0:01:36]} 38. Kh2 {[%clk 0:00:11.2]} 38... Qe2 {[%clk 0:01:35.5]} 39.
Qxb7 {[%clk 0:00:10.7]} 39... Be5 {[%clk 0:01:33.4]} 40. Qxc6 {[%clk 0:00:10.3]}
40... Qxf2+ {[%clk 0:01:32.2]} 41. Kh1 {[%clk 0:00:09]} 41... Qe1+ {[%clk
0:01:32.3]} 42. Kg2 {[%clk 0:00:07]} 42... Qxg3+ {[%clk 0:01:29.2]} 43. Kf1
{[%clk 0:00:06.8]} 43... Qxh3+ {[%clk 0:01:29.2]} 44. Kf2 {[%clk 0:00:01.8]}
44... Bd4+ {[%clk 0:01:27.4]} 45. Ke2 {[%clk 0:00:02.2]} 45... Qe3+ {[%clk
0:01:26.5]} 46. Kd1 {[%clk 0:00:02.5]} 46... Qd3+ {[%clk 0:01:26.2]} 47. Ke1
{[%clk 0:00:02.5]} 47... Qb1+ {[%clk 0:01:26.2]} 48. Kd2 {[%clk 0:00:02.9]}
48... Qxb2+ {[%clk 0:01:26.7]} 49. Kd1 {[%clk 0:00:03.6]} 49... Qa1+ {[%clk
0:01:19.9]} 50. Ke2 {[%clk 0:00:03.7]} 50... Qa2+ {[%clk 0:01:17.9]} 51. Kd1
{[%clk 0:00:04.3]} 51... Kf7 {[%clk 0:01:06.1]} 52. Qd7+ {[%clk 0:00:04.1]}
52... Kf6 {[%clk 0:01:06.6]} 53. Qd8+ {[%clk 0:00:04.2]} 53... Kf5 {[%clk
0:01:07.1]} 54. Qd7+ {[%clk 0:00:03.8]} 54... Ke4 {[%clk 0:01:07.6]} 55. Qg4+
{[%clk 0:00:04.2]} 55... Kd3 {[%clk 0:01:07.4]} 56. Qf5+ {[%clk 0:00:04.8]}
56... Kc4 {[%clk 0:01:05.6]} 57. Qc8+ {[%clk 0:00:05.5]} 57... Bc5 {[%clk
0:01:05.8]} 58. Qa6+ {[%clk 0:00:04.9]} 58... Kd4 {[%clk 0:01:03.3]} 59. Qa4+
{[%clk 0:00:02.1]} 59... Qc4 {[%clk 0:01:03.5]} 60. Qe8 {[%clk 0:00:02.6]} 60...
Qd3+ {[%clk 0:01:02.8]} 61. Ke1 {[%clk 0:00:03.1]} 61... Qe3+ {[%clk 0:01:02.8]}
62. Qxe3+ {[%clk 0:00:03.5]} 62... Kxe3 {[%clk 0:01:03.7]} 63. a4 {[%clk
0:00:04.3]} 63... d4 {[%clk 0:01:03.8]} 0-1

[Event "Late-Titled-Tuesday-Blitz-May-07-2024"]
[Site "Chess.com"]
[Date "2024.05.07"]
[Round "4"]
[White "HajiyevKanan"]
[Black "RichardShtivelband"]
[Result "1/2-1/2"]
[WhiteElo "2575"]
[BlackElo "2399"]
[TimeControl "180+1"]
[EndTime "14:39:14 PDT"]
[Termination "Game drawn by repetition"]

1. d4 {[%clk 0:03:00.9]} 1... Nf6 {[%clk 0:02:59]} 2. Nf3 {[%clk 0:03:01.8]}
2... d5 {[%clk 0:02:58.6]} 3. c4 {[%clk 0:03:02.7]} 3... c6 {[%clk 0:02:58.4]}
4. Nc3 {[%clk 0:03:03.6]} 4... e6 {[%clk 0:02:57.7]} 5. cxd5 {[%clk 0:03:04.5]}
5... exd5 {[%clk 0:02:57.4]} 6. Bg5 {[%clk 0:03:03.6]} 6... Bf5 {[%clk
0:02:54.6]} 7. Nh4 {[%clk 0:03:02.2]} 7... Bg6 {[%clk 0:02:53.8]} 8. e3 {[%clk
0:03:01.8]} 8... Nbd7 {[%clk 0:02:52.7]} 9. Nxg6 {[%clk 0:03:00.1]} 9... hxg6
{[%clk 0:02:52.4]} 10. Bd3 {[%clk 0:03:01]} 10... Bd6 {[%clk 0:02:51.5]} 11. h4
{[%clk 0:03:01.1]} 11... Qb6 {[%clk 0:02:50]} 12. Qc2 {[%clk 0:03:01.3]} 12...
O-O-O {[%clk 0:02:47.6]} 13. O-O-O {[%clk 0:02:49.6]} 13... Kb8 {[%clk
0:02:46.6]} 14. Kb1 {[%clk 0:02:49.1]} 14... Rhe8 {[%clk 0:02:39]} 15. g4 {[%clk
0:02:43.9]} 15... Nf8 {[%clk 0:02:36.6]} 16. h5 {[%clk 0:02:39.1]} 16... gxh5
{[%clk 0:02:35.1]} 17. gxh5 {[%clk 0:02:40]} 17... Ne6 {[%clk 0:02:34.2]} 18.
Bxf6 {[%clk 0:02:34.6]} 18... gxf6 {[%clk 0:02:34.5]} 19. h6 {[%clk 0:02:35.2]}
19... Rh8 {[%clk 0:02:34.1]} 20. h7 {[%clk 0:02:34.9]} 20... Rde8 {[%clk
0:02:16.1]} 21. Rh6 {[%clk 0:02:33.6]} 21... Be7 {[%clk 0:02:12.6]} 22. Rg1
{[%clk 0:02:32.5]} 22... Ng5 {[%clk 0:02:12.4]} 23. Na4 {[%clk 0:02:05.2]} 23...
Qc7 {[%clk 0:02:10.1]} 24. Nc5 {[%clk 0:02:05.3]} 24... Ka8 {[%clk 0:01:52.9]}
25. a3 {[%clk 0:02:00.4]} 25... b6 {[%clk 0:01:52.4]} 26. Na6 {[%clk 0:01:49.4]}
26... Qd7 {[%clk 0:01:52.1]} 27. Bf5 {[%clk 0:01:44.5]} 27... Qb7 {[%clk
0:01:52.1]} 28. Nb4 {[%clk 0:01:37.2]} 28... Bxb4 {[%clk 0:01:51.3]} 29. axb4
{[%clk 0:01:37.9]} 29... Ne4 {[%clk 0:01:11]} 30. Bxe4 {[%clk 0:01:34.3]} 30...
dxe4 {[%clk 0:01:08.9]} 31. Rg7 {[%clk 0:01:17.7]} 31... Rc8 {[%clk 0:00:59.9]}
32. Qxe4 {[%clk 0:01:14.6]} 32... Qa6 {[%clk 0:00:53.6]} 33. Rh1 {[%clk
0:01:01.4]} 33... Qc4 {[%clk 0:00:39.8]} 34. b5 {[%clk 0:00:53.9]} 34... Qxb5
{[%clk 0:00:39.1]} 35. Rxf7 {[%clk 0:00:54]} 35... Rhe8 {[%clk 0:00:35.4]} 36.
Qc2 {[%clk 0:00:31.4]} 36... Qd5 {[%clk 0:00:28.7]} 37. h8=Q {[%clk 0:00:23]}
37... Rxh8 {[%clk 0:00:25.8]} 38. Rxh8 {[%clk 0:00:23.7]} 38... Rxh8 {[%clk
0:00:26]} 39. Rh7 {[%clk 0:00:16.7]} 39... Rg8 {[%clk 0:00:18.7]} 40. b3 {[%clk
0:00:11.4]} 40... Rg1+ {[%clk 0:00:16.7]} 41. Kb2 {[%clk 0:00:11.8]} 41... Rg8
{[%clk 0:00:08.2]} 42. Re7 {[%clk 0:00:09.3]} 42... Rc8 {[%clk 0:00:07.2]} 43.
Qh7 {[%clk 0:00:09.2]} 43... Qa5 {[%clk 0:00:05.8]} 44. Rc7 {[%clk 0:00:09.3]}
44... Qd2+ {[%clk 0:00:05.4]} 45. Kb1 {[%clk 0:00:08.9]} 45... Qd1+ {[%clk
0:00:05.6]} 46. Kb2 {[%clk 0:00:09.2]} 46... Qd2+ {[%clk 0:00:06]} 47. Ka3
{[%clk 0:00:09.9]} 47... Qa5+ {[%clk 0:00:05.4]} 48. Kb2 {[%clk 0:00:10.4]}
48... Qd2+ {[%clk 0:00:05.5]} 1/2-1/2

[Event "Late-Titled-Tuesday-Blitz-May-07-2024"]
[Site "Chess.com"]
[Date "2024.05.07"]
[Round "4"]
[White "maurovargas01"]
[Black "rionelG"]
[Result "0-1"]
[WhiteElo "1967"]
[BlackElo "2293"]
[TimeControl "180+1"]
[EndTime "14:39:15 PDT"]
[Termination "rionelG won on time"]

1. e4 {[%clk 0:03:00.2]} 1... c5 {[%clk 0:02:58.5]} 2. Nc3 {[%clk 0:02:59.7]}
2... a6 {[%clk 0:02:58.4]} 3. f4 {[%clk 0:03:00.2]} 3... Nc6 {[%clk 0:02:58.1]}
4. Nf3 {[%clk 0:03:01.1]} 4... g6 {[%clk 0:02:58.4]} 5. d3 {[%clk 0:03:01.3]}
5... Bg7 {[%clk 0:02:58.9]} 6. g4 {[%clk 0:03:01.1]} 6... d6 {[%clk 0:02:51.9]}
7. h3 {[%clk 0:03:01.3]} 7... e6 {[%clk 0:02:46.2]} 8. Bg2 {[%clk 0:03:00.6]}
8... Nge7 {[%clk 0:02:45.4]} 9. O-O {[%clk 0:02:52.5]} 9... Nd4 {[%clk
0:02:25.6]} 10. Ne2 {[%clk 0:02:49.2]} 10... Nxf3+ {[%clk 0:02:23.6]} 11. Bxf3
{[%clk 0:02:50.1]} 11... O-O {[%clk 0:02:22.7]} 12. Qe1 {[%clk 0:02:49.5]} 12...
f5 {[%clk 0:02:22.6]} 13. Ng3 {[%clk 0:02:41.5]} 13... Rb8 {[%clk 0:02:17.8]}
14. Rb1 {[%clk 0:02:36.8]} 14... b5 {[%clk 0:02:17]} 15. c3 {[%clk 0:02:36.9]}
15... b4 {[%clk 0:02:15.8]} 16. Bd2 {[%clk 0:02:34.7]} 16... a5 {[%clk
0:02:14.4]} 17. Be2 {[%clk 0:02:30.7]} 17... Nc6 {[%clk 0:02:06.4]} 18. Kg2
{[%clk 0:02:29.4]} 18... Qc7 {[%clk 0:01:53.4]} 19. g5 {[%clk 0:02:24.8]} 19...
Bb7 {[%clk 0:01:46.3]} 20. h4 {[%clk 0:02:23.5]} 20... bxc3 {[%clk 0:01:43.1]}
21. Bxc3 {[%clk 0:02:21.1]} 21... Nd4 {[%clk 0:01:42.4]} 22. h5 {[%clk
0:02:17.4]} 22... d5 {[%clk 0:00:54.4]} 23. e5 {[%clk 0:02:15.3]} 23... Nxe2
{[%clk 0:00:53.2]} 24. Qxe2 {[%clk 0:02:14]} 24... d4+ {[%clk 0:00:53.8]} 25.
Kh3 {[%clk 0:02:06.1]} 25... dxc3 {[%clk 0:00:53.7]} 26. h6 {[%clk 0:02:05.4]}
26... Bh8 {[%clk 0:00:42.6]} 27. bxc3 {[%clk 0:01:39.3]} 27... Bc6 {[%clk
0:00:33.4]} 28. Rbc1 {[%clk 0:01:32.1]} 28... Rb5 {[%clk 0:00:21.9]} 29. c4
{[%clk 0:01:30.5]} 29... Rb4 {[%clk 0:00:22.1]} 30. Qd2 {[%clk 0:00:24.5]} 30...
Rfb8 {[%clk 0:00:21.5]} 31. Rc2 {[%clk 0:00:22.5]} 31... Qb7 {[%clk 0:00:19.7]}
32. Rf2 {[%clk 0:00:06.5]} 32... Bf3 {[%clk 0:00:19.3]} 33. Rh2 {[%clk
0:00:05.6]} 33... Bg4+ {[%clk 0:00:19.4]} 34. Kh4 {[%clk 0:00:04.2]} 34... Rd8
{[%clk 0:00:18.1]} 35. Nf1 {[%clk 0:00:03.4]} 35... Qc7 {[%clk 0:00:12.9]} 36.
Ne3 {[%clk 0:00:03.3]} 36... Bxe5 {[%clk 0:00:09.5]} 37. fxe5 {[%clk 0:00:02.4]}
37... Qxe5 {[%clk 0:00:10.4]} 0-1

[Event "Late-Titled-Tuesday-Blitz-May-07-2024"]
[Site "Chess.com"]
[Date "2024.05.07"]
[Round "4"]
[White "vladgoncharov"]
[Black "AsaHoffmann"]
[Result "1-0"]
[WhiteElo "2582"]
[BlackElo "2419"]
[TimeControl "180+1"]
[EndTime "14:39:17 PDT"]
[Termination "vladgoncharov won on time"]

1. d4 {[%clk 0:03:00.9]} 1... Nf6 {[%clk 0:02:52.3]} 2. c4 {[%clk 0:03:00.8]}
2... c5 {[%clk 0:02:46.5]} 3. Nf3 {[%clk 0:02:56.8]} 3... cxd4 {[%clk
0:02:45.6]} 4. Nxd4 {[%clk 0:02:56.5]} 4... e5 {[%clk 0:02:45.6]} 5. Nb5 {[%clk
0:02:56.5]} 5... d5 {[%clk 0:02:45.3]} 6. cxd5 {[%clk 0:02:56.2]} 6... Bb4+
{[%clk 0:02:43.8]} 7. N1c3 {[%clk 0:02:48.3]} 7... O-O {[%clk 0:02:42.8]} 8. a3
{[%clk 0:02:46.4]} 8... Bc5 {[%clk 0:02:42.1]} 9. d6 {[%clk 0:02:37.6]} 9... Na6
{[%clk 0:02:41.2]} 10. e3 {[%clk 0:02:36.2]} 10... Bf5 {[%clk 0:02:38]} 11. b4
{[%clk 0:02:30.4]} 11... Bb6 {[%clk 0:02:36.6]} 12. Bb2 {[%clk 0:02:28.5]} 12...
Rc8 {[%clk 0:02:36.2]} 13. Bd3 {[%clk 0:02:25.7]} 13... e4 {[%clk 0:02:34.5]}
14. Be2 {[%clk 0:02:25.4]} 14... Re8 {[%clk 0:02:34]} 15. h3 {[%clk 0:02:18.2]}
15... Nd7 {[%clk 0:02:29.8]} 16. Nd5 {[%clk 0:02:11.6]} 16... Ne5 {[%clk
0:02:26.8]} 17. Bxe5 {[%clk 0:02:08.8]} 17... Rxe5 {[%clk 0:02:25.7]} 18. Ne7+
{[%clk 0:02:08.2]} 18... Rxe7 {[%clk 0:02:19.6]} 19. dxe7 {[%clk 0:02:07.1]}
19... Qxe7 {[%clk 0:02:19.6]} 20. Nd6 {[%clk 0:02:03.6]} 20... Rd8 {[%clk
0:02:16.6]} 21. Nxf5 {[%clk 0:02:02.8]} 21... Rxd1+ {[%clk 0:02:14.9]} 22. Rxd1
{[%clk 0:02:02.1]} 22... Qe5 {[%clk 0:02:11.8]} 23. Nd4 {[%clk 0:02:01.4]} 23...
Nc7 {[%clk 0:02:05.3]} 24. O-O {[%clk 0:01:59.1]} 24... g6 {[%clk 0:02:05.1]}
25. Rc1 {[%clk 0:01:53.5]} 25... Nd5 {[%clk 0:02:03.8]} 26. Rc8+ {[%clk
0:01:49.5]} 26... Kg7 {[%clk 0:02:03.2]} 27. Rd1 {[%clk 0:01:49.4]} 27... Nf6
{[%clk 0:01:46.1]} 28. Nb5 {[%clk 0:01:40.1]} 28... Qb2 {[%clk 0:01:41.6]} 29.
Bf1 {[%clk 0:01:36.5]} 29... h5 {[%clk 0:01:27]} 30. Rb8 {[%clk 0:01:29.1]}
30... a6 {[%clk 0:01:23.3]} 31. Rxb7 {[%clk 0:01:17.1]} 31... axb5 {[%clk
0:01:20.3]} 32. Rxb6 {[%clk 0:01:15.9]} 32... Qxa3 {[%clk 0:01:19.8]} 33. Rxb5
{[%clk 0:01:14.7]} 33... Qa2 {[%clk 0:01:09.1]} 34. Rb7 {[%clk 0:01:13.1]} 34...
h4 {[%clk 0:01:05.5]} 35. Rd4 {[%clk 0:01:08]} 35... g5 {[%clk 0:01:04.5]} 36.
Bc4 {[%clk 0:01:02.8]} 36... Qa1+ {[%clk 0:00:52.6]} 37. Kh2 {[%clk 0:01:00.3]}
37... g4 {[%clk 0:00:52.6]} 38. Rxf7+ {[%clk 0:00:57.9]} 38... Kg6 {[%clk
0:00:52.4]} 39. Rxf6+ {[%clk 0:00:49.8]} 39... Kxf6 {[%clk 0:00:47.7]} 40. hxg4
{[%clk 0:00:49.7]} 40... Qe1 {[%clk 0:00:42.6]} 41. Rxe4 {[%clk 0:00:49.2]}
41... Qxb4 {[%clk 0:00:38.9]} 42. Rf4+ {[%clk 0:00:47.4]} 42... Kg7 {[%clk
0:00:26.2]} 43. Bd5 {[%clk 0:00:43.5]} 43... Qd2 {[%clk 0:00:22.8]} 44. Be4
{[%clk 0:00:42]} 44... Qd1 {[%clk 0:00:17.9]} 45. g5 {[%clk 0:00:40]} 45... Qd2
{[%clk 0:00:14]} 46. g6 {[%clk 0:00:39.3]} 46... Qe1 {[%clk 0:00:11.8]} 47. Kh3
{[%clk 0:00:37.1]} 47... Qh1+ {[%clk 0:00:10.5]} 48. Kg4 {[%clk 0:00:37.2]}
48... h3 {[%clk 0:00:09.2]} 49. gxh3 {[%clk 0:00:30.6]} 49... Qg1+ {[%clk
0:00:07.8]} 50. Kh5 {[%clk 0:00:29.4]} 50... Qd1+ {[%clk 0:00:04.1]} 51. Bf3
{[%clk 0:00:25.5]} 51... Qd7 {[%clk 0:00:02.5]} 52. Rf7+ {[%clk 0:00:24.9]} 1-0